fUSD/lending_fUSD_20250410
["ID","MTS","AMOUNT","RATE_DAILY","PERIOD"]
[357665504,1744296662583,-1496.91,0.0003863,4]
[357665505,1744296662592,-500.0,0.0003863,4]
[357665506,1744296662602,-500.0,0.0003863,4]
[357665507,1744296662612,-984.28,0.0003863,4]
[357665508,1744296662621,-500.0,0.0003863,4]
[357665509,1744296662630,-500.0,0.0003863,4]
[357665510,1744296662639,-500.0,0.0003863,4]
[357665511,1744296662649,-500.0,0.0003863,4]
[357665512,1744296662659,-3699.7,0.0003863,4]
[357665513,1744296662668,-577.82552978,0.0003863,4]
[357665514,1744296662678,-980.37,0.0003863,4]
[357665515,1744296662687,-500.0,0.0003863,4]
[357665516,1744296662696,-500.0,0.0003863,4]
[357665517,1744296662705,-530.81,0.0003863,4]
[357665518,1744296662714,-500.0,0.0003863,4]
[357665519,1744296662724,-500.0,0.0003863,4]
[357665520,1744296662733,-1990.03,0.0003863,4]
[357665521,1744296662742,-500.0,0.0003863,4]
[357665522,1744296662751,-1090.92,0.0003863,4]
[357665523,1744296662760,-7086.55,0.0003863,4]
[357665524,1744296662769,-8595.47,0.0003863,4]
[357665525,1744296662778,-652.28,0.0003863,4]
[357665526,1744296662787,-500.0,0.0003863,4]
[357665527,1744296662796,-507.57153774,0.0003863,4]
[357665528,1744296662806,-500.0,0.0003863,4]
[357665529,1744296662816,-751.87,0.0003863,4]
[357665530,1744296662826,-500.0,0.0003863,4]
[357665531,1744296662835,-500.0,0.0003863,4]
[357665532,1744296662844,-812.34,0.0003863,4]
[357665533,1744296662854,-500.0,0.0003863,4]
[357665534,1744296662863,-500.0,0.0003863,4]
[357665535,1744296662873,-1122.58,0.0003863,4]
[357665536,1744296662882,-500.0,0.0003863,4]
[357665537,1744296662892,-2345.31,0.0003863,4]
[357665538,1744296662901,-953.78,0.0003863,4]
[357665539,1744296662911,-603.14,0.0003863,4]
[357665540,1744296662920,-1128.64,0.0003863,4]
[357665541,1744296662930,-7056.15,0.0003863,4]
[357665542,1744296662939,-889.54,0.0003863,4]
[357665543,1744296662949,-810.88,0.0003863,4]
[357665544,1744296662958,-500.0,0.0003863,4]
[357665545,1744296662968,-500.0,0.0003863,4]
[357665546,1744296662977,-2000.0,0.0003863,2]
[357665547,1744296662986,-1952.28,0.0003863,4]
[357665548,1744296662995,-500.0,0.0003863,4]
[357665549,1744296663005,-500.0,0.0003863,4]
[357665550,1744296663014,-745.91,0.0003863,4]
[357665551,1744296663023,-885.53,0.0003863,4]
[357665552,1744296663033,-1448.23,0.0003863,4]
[357665553,1744296663043,-3543.89,0.0003863,4]
[357665554,1744296663053,-500.0,0.0003863,4]
[357665555,1744296663064,-203.66043402,0.0003863,4]
[357665556,1744296663074,-1006.38,0.0003863,4]
[357665557,1744296663084,-532.42,0.0003863,4]
[357665558,1744296663094,-500.0,0.0003863,4]
[357665559,1744296663104,-500.0,0.0003863,4]
[357665560,1744296663114,-500.0,0.0003863,4]
[357665561,1744296663130,-485.79273703,0.0003863,4]
[357665562,1744296663142,-500.0,0.0003863,4]
[357665563,1744296663151,-611.9450556,0.0003863,4]
[357665564,1744296663162,-500.0,0.0003863,4]
[357665565,1744296663173,-1030.96,0.0003863,4]
[357665566,1744296663184,-500.0,0.0003863,4]
[357665567,1744296663194,-1613.58,0.0003863,4]
[357665568,1744296663206,-500.0,0.0003863,4]
[357665569,1744296663216,-151.0,0.0003863,4]
[357665570,1744296663226,-599.76,0.0003863,4]
[357665571,1744296663236,-500.0,0.0003863,4]
[357665572,1744296663245,-933.23,0.0003863,4]
[357665573,1744296663255,-610.02,0.0003863,4]
[357665574,1744296663265,-40377.65,0.0003863,4]
[357665575,1744296663275,-500.0,0.0003863,4]
[357665576,1744296663285,-500.0,0.0003863,4]
[357665577,1744296663294,-828.73,0.0003863,4]
[357665578,1744296663304,-500.0,0.0003863,4]
[357665579,1744296663314,-500.0,0.0003863,4]
[357665580,1744296663323,-885.24,0.0003863,4]
[357665581,1744296663332,-500.0,0.0003863,4]
[357665582,1744296663342,-500.0,0.0003863,4]
[357665583,1744296663352,-505.5025115,0.0003863,4]
[357665584,1744296663362,-500.0,0.0003863,4]
[357665585,1744296663372,-2606.3,0.0003863,4]
[357665586,1744296663382,-500.0,0.0003863,4]
[357665587,1744296663391,-886.12,0.0003863,4]
[357665588,1744296663401,-1220.57,0.0003863,4]
[357665589,1744296663412,-1103.36,0.0003863,4]
[357665590,1744296663423,-500.0,0.0003863,4]
[357665591,1744296663433,-915.03,0.0003863,4]
[357665592,1744296663443,-500.0,0.0003863,4]
[357665593,1744296663453,-500.0,0.0003863,4]
[357665594,1744296663464,-928.26,0.0003863,4]
[357665595,1744296663474,-631.37,0.0003863,4]
[357665596,1744296663485,-500.0,0.0003863,4]
[357665597,1744296663494,-589.67,0.0003863,4]
[357665598,1744296663504,-500.0,0.0003863,4]
[357665599,1744296663514,-563.8956372,0.0003863,4]
[357665600,1744296663524,-524.0339647,0.0003863,4]
[357665601,1744296663534,-515.2,0.0003863,4]
[357665602,1744296663544,-500.0,0.0003863,4]
[357665603,1744296663553,-851.46,0.0003863,4]
[357665604,1744296663563,-500.0,0.0003863,4]
[357665605,1744296663572,-509.06539775,0.0003863,4]
[357665606,1744296663582,-593.15731803,0.0003863,4]
[357665607,1744296663592,-500.0,0.0003863,4]
[357665608,1744296663601,-1367.6,0.0003863,4]
[357665609,1744296663611,-500.0,0.0003863,4]
[357665610,1744296663620,-697.12,0.0003863,4]
[357665611,1744296663629,-515.21566328,0.0003863,4]
[357665612,1744296663782,-4593.62,0.0003863,4]
[357665613,1744296663814,-500.0,0.0003863,4]
[357665614,1744296663824,-554.97,0.0003863,4]
[357665615,1744296663834,-519.00733132,0.0003863,4]
[357665616,1744296663845,-500.0,0.0003863,4]
[357665617,1744296663855,-500.0,0.0003863,4]
[357665618,1744296663864,-500.0,0.0003863,4]
[357665619,1744296663874,-711.72,0.0003863,4]
[357665620,1744296663884,-1000.2,0.0003863,4]
[357665621,1744296663893,-500.0,0.0003863,4]
[357665622,1744296663903,-1112.76,0.0003863,4]
[357665623,1744296663914,-1237.51,0.0003863,4]
[357665624,1744296663924,-500.0,0.0003863,4]
[357665625,1744296663934,-2886.74,0.0003863,4]
[357665626,1744296663943,-162.44454878,0.0003863,2]
[357665627,1744296663953,-522.78,0.0003863,4]
[357665628,1744296663962,-1039.16,0.0003863,4]
[357665629,1744296663971,-1575.03,0.0003863,4]
[357665630,1744296663981,-500.0,0.0003863,4]
[357665631,1744296663991,-641.03,0.0003863,4]
[357665632,1744296664000,-500.0,0.0003863,4]
[357665633,1744296664010,-500.0,0.0003863,4]
[357665634,1744296664019,-500.0,0.0003863,4]
[357665635,1744296664029,-4255.51,0.0003863,4]
[357665636,1744296664038,-777.93,0.0003863,4]
[357665637,1744296664048,-500.0,0.0003863,4]
[357665638,1744296664057,-1165.68,0.0003863,4]
[357665639,1744296664067,-193.21450154,0.0003863,4]
[357665640,1744296664077,-9616.57,0.0003863,4]
[357665641,1744296664087,-632.73,0.0003863,4]
[357665642,1744296664096,-500.0,0.0003863,4]
[357665643,1744296664106,-2000.0,0.0003863,4]
[357665644,1744296664116,-500.0,0.0003863,4]
[357665645,1744296664130,-23785.76,0.0003863,4]
[357665646,1744296664139,-500.0,0.0003863,4]
[357665647,1744296664149,-500.0,0.0003863,4]
[357665648,1744296664160,-739.92,0.0003863,4]
[357665649,1744296664170,-523.73027111,0.0003863,4]
[357665650,1744296664180,-302.96349121,0.0003863,4]
[357665651,1744296664190,-500.0,0.0003863,4]
[357665652,1744296664199,-664.6,0.0003863,4]
[357665653,1744296664209,-1817.32,0.0003863,4]
[357665654,1744296664219,-500.0,0.0003863,4]
[357665655,1744296664229,-907.75,0.0003863,4]
[357665656,1744296664239,-853.46,0.0003863,4]
[357665657,1744296664249,-613.06542047,0.0003863,4]
[357665658,1744296664259,-2164.26,0.0003863,4]
[357665659,1744296664269,-500.0,0.0003863,4]
[357665660,1744296664279,-4891.3,0.0003863,4]
[357665661,1744296664289,-500.0,0.0003863,4]
[357665662,1744296664299,-500.0,0.0003863,4]
[357665663,1744296664308,-500.0,0.0003863,4]
[357665664,1744296664318,-2083.77,0.0003863,4]
[357665665,1744296664327,-500.0,0.0003863,4]
[357665666,1744296664337,-629.13,0.0003863,4]
[357665667,1744296664347,-531.37018955,0.0003863,4]
[357665668,1744296664357,-500.0,0.0003863,4]
[357665669,1744296664367,-500.0,0.0003863,4]
[357665670,1744296664376,-500.0,0.0003863,4]
[357665671,1744296664387,-1217.49,0.0003863,4]
[357665672,1744296664396,-589.65288383,0.0003863,4]
[357665673,1744296664406,-552.85,0.0003863,4]
[357665674,1744296664419,-500.0,0.0003863,120]
[357665675,1744296664428,-666.85,0.0003863,4]
[357665676,1744296664438,-500.0,0.0003863,4]
[357665677,1744296664448,-500.0,0.0003863,4]
[357665678,1744296664458,-2641.61,0.0003863,4]
[357665679,1744296664469,-500.0,0.0003863,4]
[357665680,1744296664479,-1000.0,0.0003863,4]
[357665681,1744296664489,-500.0,0.0003863,4]
[357665682,1744296664499,-683.48,0.0003863,4]
[357665683,1744296664508,-506.46087171,0.0003863,4]
[357665684,1744296664518,-500.0,0.0003863,4]
[357665685,1744296664528,-500.0,0.0003863,4]
[357665686,1744296664538,-500.0,0.0003863,2]
[357665687,1744296664548,-1281.13,0.0003863,4]
[357665688,1744296664557,-1218.11,0.0003863,4]
[357665689,1744296664567,-600.37,0.0003863,4]
[357665690,1744296664576,-500.0,0.0003863,4]
[357665691,1744296664586,-1655.73,0.0003863,4]
[357665692,1744296664596,-500.0,0.0003863,4]
[357665693,1744296664605,-514.52138309,0.0003863,4]
[357665694,1744296664615,-500.0,0.0003863,4]
[357665695,1744296664625,-973.2,0.0003863,4]
[357665696,1744296664634,-500.0,0.0003863,4]
[357665697,1744296664644,-500.0,0.0003863,4]
[357665698,1744296664653,-500.0,0.0003863,4]
[357665699,1744296664665,-500.0,0.0003863,4]
[357665700,1744296664675,-500.0,0.0003863,4]
[357665701,1744296664685,-500.0,0.0003863,4]
[357665702,1744296664694,-500.0,0.0003863,4]
[357665703,1744296664704,-582.23,0.0003863,4]
[357665704,1744296664714,-500.0,0.0003863,4]
[357665705,1744296664723,-500.0,0.0003863,4]
[357665706,1744296664732,-573.78,0.0003863,4]
[357665707,1744296664742,-1008.6,0.0003863,4]
[357665708,1744296664752,-500.0,0.0003863,4]
[357665709,1744296664762,-2001.22259363,0.0003863,4]
[357665710,1744296665317,-630.68945513,0.0003863,4]
[357665711,1744296665346,-284.40795124,0.0003863,4]
[357665712,1744296665356,-533.28049666,0.0003863,4]
[357665713,1744296665366,-500.0,0.0003863,4]
[357665714,1744296665376,-182.3115521,0.0003863,4]
[357665715,1744296666883,-230.886982,0.00038356,7]
[357665716,1744296666892,-230.886982,0.00038356,7]
[357665717,1744296666902,-230.886982,0.00038356,7]
[357665718,1744296666913,-844.0484479,0.0003863,4]
[357665719,1744296666922,-500.0,0.0003863,4]
[357665720,1744296666932,-500.0,0.0003863,4]
[357665721,1744296666942,-500.0,0.0003863,4]
[357665722,1744296666952,-500.0,0.0003863,4]
[357665723,1744296666962,-500.0,0.0003863,4]
[357665724,1744296666972,-2739.29,0.0003863,4]
[357665725,1744296666982,-566.91,0.0003863,4]
[357665726,1744296666992,-500.0,0.0003863,2]
[357665727,1744296667004,-500.0,0.0003863,4]
[357665728,1744296667014,-500.0,0.0003863,4]
[357665729,1744296667024,-568.96,0.0003863,4]
[357665730,1744296667034,-819.97,0.0003863,4]
[357665731,1744296667043,-500.0,0.0003863,3]
[357665732,1744296667053,-500.0,0.0003863,4]
[357665733,1744296667064,-500.0,0.0003863,4]
[357665734,1744296667074,-500.0,0.0003863,4]
[357665735,1744296667084,-1154.23,0.0003863,4]
[357665736,1744296667094,-500.0,0.0003863,4]
[357665737,1744296667104,-500.0,0.0003863,4]
[357665738,1744296667115,-500.0,0.0003863,4]
[357665739,1744296667129,-865.9,0.0003863,4]
[357665740,1744296667139,-721.04,0.0003863,4]
[357665741,1744296667153,-1378.7,0.0003863,4]
[357665742,1744296667169,-695.78,0.0003863,4]
[357665743,1744296667179,-500.0,0.0003863,4]
[357665744,1744296667189,-2121.53,0.0003863,4]
[357665745,1744296667198,-500.0,0.0003863,4]
[357665746,1744296667209,-243.39513544,0.0003863,4]
[357665747,1744296667250,-256.60486456,0.0003863,4]
[357665748,1744296667260,-1018.51,0.0003863,4]
[357665749,1744296667269,-500.0,0.0003863,4]
[357665750,1744296667279,-459.24478298,0.0003863,4]
[357665751,1744296667432,-40.75521702,0.0003863,4]
[357665752,1744296667442,-500.0,0.0003863,4]
[357665753,1744296667452,-206.64800847,0.0003863,4]
[357665754,1744296667462,-500.0,0.0003863,4]
[357665755,1744296667471,-3014.44,0.0003863,4]
[357665756,1744296667482,-1973.41,0.0003863,4]
[357665757,1744296667492,-531.78657497,0.0003863,4]
[357665758,1744296667501,-500.0,0.0003863,4]
[357665759,1744296667511,-21395.75,0.0003863,4]
[357665760,1744296667521,-500.0,0.0003863,4]
[357665761,1744296667530,-44.66938354,0.0003863,4]
[357665762,1744296668643,-2465.05726604,0.00038226,13]
[357665763,1744296668652,-500.0,0.00038356,4]
[357665764,1744296668662,-455.33061646,0.0003863,4]
[357665765,1744296668672,-500.0,0.0003863,4]
[357665766,1744296668681,-500.0,0.0003863,4]
[357665767,1744296668690,-500.0,0.0003863,4]
[357665768,1744296668699,-708.54,0.0003863,4]
[357665769,1744296668708,-304.79033612,0.0003863,4]
[357665770,1744296668733,-195.20966388,0.0003863,4]
[357665771,1744296668749,-500.0,0.0003863,4]
[357665772,1744296668759,-500.0,0.0003863,4]
[357665773,1744296668770,-500.0,0.0003863,4]
[357665774,1744296668781,-500.0,0.0003863,4]
[357665775,1744296668796,-500.0,0.0003863,4]
[357665776,1744296668814,-634.52,0.0003863,4]
[357665777,1744296668824,-500.0,0.0003863,4]
[357665778,1744296668834,-500.0,0.0003863,4]
[357665779,1744296668843,-500.0,0.0003863,4]
[357665780,1744296668853,-492.7547307,0.0003863,4]
[357665781,1744296668863,-500.0,0.0003863,2]
[357665782,1744296668873,-500.0,0.0003863,4]
[357665783,1744296668883,-500.0,0.0003863,4]
[357665784,1744296668893,-500.0,0.0003863,4]
[357665785,1744296668902,-160.35,0.0003863,2]
[357665786,1744296668912,-8841.43846586,0.00038641,2]
[357665787,1744296668922,-534.95088703,0.00038669,46]
[357665788,1744296668932,-159.83356775,0.00038673,5]
[357665789,1744296668942,-567.33597221,0.00038673,5]
[357665790,1744296668951,-500.0,0.00038673,5]
[357665791,1744296668961,-500.0,0.00038673,5]
[357665792,1744296668970,-500.0,0.00038673,5]
[357665793,1744296668979,-500.0,0.00038673,5]
[357665794,1744296668989,-501.24506484,0.00038673,5]
[357665795,1744296668999,-540.144209,0.00038673,5]
[357665796,1744296669008,-279.50491841,0.00038673,5]
[357665797,1744296669019,-500.0,0.00038673,5]
[357665798,1744296669028,-502.29282697,0.00038673,5]
[357665799,1744296669038,-161.64136603,0.00038673,5]
[357665800,1744296669048,-500.0,0.00038673,5]
[357665801,1744296669057,-2988.8275003,0.0003874,2]
[357665802,1744296669066,-300.0,0.0003876,2]
[357665803,1744296669076,-1768.0,0.00038795,2]
[357665804,1744296669086,-1500.0,0.000388,14]
[357665805,1744296669095,-168.88560743,0.00038804,2]
[357665806,1744296669104,-8442.56912214,0.00038804,2]
[357665807,1744296669114,-187.62984725,0.00038804,2]
[357665808,1744296669127,-35451.76,0.00038893,4]
[357665809,1744296669137,-225.412435,0.00038894,14]
[357665810,1744296669147,-225.412435,0.00038894,14]
[357665811,1744296669157,-308.98121152,0.00038894,2]
[357665812,1744296669168,-1800.0,0.000389,14]
[357665813,1744296669178,-500.0,0.00038903,4]
[357665814,1744296669188,-35451.76,0.00038903,4]
[357665815,1744296669199,-150.0,0.00038903,3]
[357665816,1744296669210,-150.0,0.00038903,3]
[357665817,1744296669221,-639.34,0.00038904,4]
[357665818,1744296669231,-500.0,0.00038904,4]
[357665819,1744296669240,-563.05,0.00038904,4]
[357665820,1744296669250,-500.0,0.00038904,4]
[357665821,1744296669260,-500.0,0.00038904,4]
[357665822,1744296669269,-226.97322238,0.00038904,4]
[357665823,1744296669278,-500.0,0.00038904,4]
[357665824,1744296669288,-500.0,0.00038904,4]
[357665825,1744296669298,-584.9,0.00038904,4]
[357665826,1744296669308,-953.15,0.00038904,4]
[357665827,1744296669318,-500.0,0.00038904,4]
[357665828,1744296669328,-500.0,0.00038904,4]
[357665829,1744296669338,-648.69108334,0.00038904,4]
[357665830,1744296669347,-631.9283649,0.00038904,4]
[357665831,1744296669357,-500.0,0.00038904,4]
[357665832,1744296669367,-500.0,0.00038904,4]
[357665833,1744296669376,-524.93079119,0.00038904,4]
[357665834,1744296669386,-500.0,0.00038904,4]
[357665835,1744296669396,-500.0,0.00038904,4]
[357665836,1744296669405,-500.0,0.00038904,4]
[357665837,1744296669414,-500.0,0.00038904,4]
[357665838,1744296669424,-769.58,0.00038904,4]
[357665839,1744296669434,-500.0,0.00038904,4]
[357665840,1744296669443,-708.59,0.00038904,4]
[357665841,1744296669454,-510.67205262,0.00038904,4]
[357665842,1744296669463,-500.0,0.00038904,4]
[357665843,1744296669473,-500.0,0.00038904,4]
[357665844,1744296669482,-541.75440461,0.00038904,4]
[357665845,1744296669492,-500.0,0.00038904,4]
[357665846,1744296669501,-617.31,0.00038904,4]
[357665847,1744296669510,-260.22237982,0.00038904,4]
[357665848,1744296669519,-500.0,0.00038904,4]
[357665849,1744296669529,-500.0,0.00038904,4]
[357665850,1744296669539,-543.98664553,0.00038904,4]
[357665851,1744296669548,-286.87520225,0.00038904,4]
[357665852,1744296669558,-536.61692847,0.00038904,4]
[357665853,1744296669568,-500.0,0.00038904,4]
[357665854,1744296669578,-538.58914805,0.00038904,4]
[357665855,1744296669587,-327.98590285,0.00038904,4]
[357665856,1744296669597,-516.20707381,0.00038904,4]
[357665857,1744296669606,-500.0,0.00038904,4]
[357665858,1744296669615,-500.0,0.00038904,4]
[357665859,1744296669624,-647.36,0.00038904,4]
[357665860,1744296669634,-500.0,0.00038904,4]
[357665861,1744296669643,-1000.0,0.00038904,4]
[357665862,1744296669653,-519.69990465,0.00038904,4]
[357665863,1744296669665,-500.0,0.00038904,4]
[357665864,1744296669675,-500.0,0.00038904,4]
[357665865,1744296669685,-225.412435,0.00038904,14]
[357665866,1744296669695,-225.412435,0.00038904,14]
[357665867,1744296669706,-225.412435,0.00038904,14]
[357665868,1744296669716,-500.0,0.00038904,4]
[357665869,1744296669726,-225.412435,0.00038904,14]
[357665870,1744296669736,-225.412435,0.00038904,14]
[357665871,1744296669746,-225.412435,0.00038904,14]
[357665872,1744296669756,-500.0,0.00038904,4]
[357665873,1744296669767,-500.0,0.00038904,4]
[357665874,1744296669777,-525.47893139,0.00038904,4]
[357665875,1744296669786,-500.0,0.00038904,4]
[357665876,1744296669796,-500.0,0.00038904,4]
[357665877,1744296669806,-500.0,0.00038904,4]
[357665878,1744296669816,-360.66732784,0.00038904,4]
[357665879,1744296669825,-517.84,0.00038904,4]
[357665880,1744296669835,-500.0,0.00038904,4]
[357665881,1744296669844,-500.0,0.00038904,4]
[357665882,1744296669854,-500.0,0.00038904,4]
[357665883,1744296669864,-500.0,0.00038904,4]
[357665884,1744296669874,-500.0,0.00038904,4]
[357665885,1744296669885,-500.0,0.00038904,4]
[357665886,1744296669895,-500.0,0.00038904,4]
[357665887,1744296669905,-500.0,0.00038904,4]
[357665888,1744296669916,-1514.61,0.00038904,4]
[357665889,1744296669926,-500.0,0.00038904,4]
[357665890,1744296669937,-500.0,0.00038904,4]
[357665891,1744296669947,-500.0,0.00038904,4]
[357665892,1744296669957,-534.84089049,0.00038904,4]
[357665893,1744296670117,-500.0,0.00038904,4]
[357665894,1744296670132,-500.0,0.00038904,4]
[357665895,1744296670141,-526.90123182,0.00038904,4]
[357665896,1744296670151,-500.0,0.00038904,4]
[357665897,1744296670161,-500.0,0.00038904,4]
[357665898,1744296670173,-500.0,0.00038904,4]
[357665899,1744296670183,-508.06329494,0.00038904,4]
[357665900,1744296670192,-500.0,0.00038904,4]
[357665901,1744296670202,-500.0,0.00038904,4]
[357665902,1744296670212,-917.31,0.00038904,4]
[357665903,1744296670221,-500.0,0.00038904,4]
[357665904,1744296670231,-500.0,0.00038904,4]
[357665905,1744296670240,-500.0,0.00038904,4]
[357665906,1744296670250,-500.0,0.00038904,4]
[357665907,1744296670259,-500.0,0.00038904,2]
[357665908,1744296670269,-271.9942245,0.00038904,4]
[357665909,1744296670278,-500.0,0.00038904,2]
[357665910,1744296670287,-863.33,0.00038904,4]
[357665911,1744296670297,-500.0,0.00038904,4]
[357665912,1744296670306,-500.0,0.00038904,2]
[357665913,1744296670315,-1299.27,0.00038904,4]
[357665914,1744296670325,-331.63694496,0.00038904,4]
[357665915,1744296670334,-500.0,0.00038904,4]
[357665916,1744296670344,-500.0,0.00038904,4]
[357665917,1744296670354,-1133.28,0.00038904,4]
[357665918,1744296670363,-1358.17,0.00038904,4]
[357665919,1744296670373,-500.0,0.00038904,4]
[357665920,1744296670382,-500.0,0.00038904,4]
[357665921,1744296670391,-500.0,0.00038904,4]
[357665922,1744296670401,-350.73236868,0.00038904,4]
[357665923,1744296670411,-500.0,0.00038904,4]
[357665924,1744296670422,-500.0,0.00038904,4]
[357665925,1744296670431,-500.0,0.00038904,4]
[357665926,1744296670440,-500.0,0.00038904,4]
[357665927,1744296670449,-500.0,0.00038904,4]
[357665928,1744296670459,-1984.66,0.00038904,4]
[357665929,1744296670468,-519.79,0.00038904,4]
[357665930,1744296670478,-1030.59,0.00038904,4]
[357665931,1744296670487,-500.0,0.00038904,4]
[357665932,1744296670497,-527.56,0.00038904,4]
[357665933,1744296670506,-500.0,0.00038904,4]
[357665934,1744296670515,-500.0,0.00038904,4]
[357665935,1744296670524,-1051.38,0.00038904,4]
[357665936,1744296670534,-813.29,0.00038904,4]
[357665937,1744296670544,-500.0,0.00038904,4]
[357665938,1744296670553,-500.0,0.00038904,4]
[357665939,1744296670563,-500.0,0.00038904,4]
[357665940,1744296670572,-500.0,0.00038904,4]
[357665941,1744296670582,-500.0,0.00038904,4]
[357665942,1744296670591,-891.93,0.00038904,4]
[357665943,1744296670601,-500.0,0.00038904,4]
[357665944,1744296670610,-500.0,0.00038904,4]
[357665945,1744296670620,-500.0,0.00038904,4]
[357665946,1744296670629,-500.0,0.00038904,4]
[357665947,1744296670638,-500.0,0.00038904,4]
[357665948,1744296670648,-500.0,0.00038904,4]
[357665949,1744296670657,-500.0,0.00038904,4]
[357665950,1744296670668,-527.96883473,0.00038904,4]
[357665951,1744296670678,-732.94,0.00038904,4]
[357665952,1744296670687,-199.18773135,0.00038904,4]
[357665953,1744296670697,-500.0,0.00038904,4]
[357665954,1744296670707,-616.98,0.00038904,4]
[357665955,1744296670717,-500.0,0.00038904,4]
[357665956,1744296670727,-500.0,0.00038904,4]
[357665957,1744296670737,-500.0,0.00038904,4]
[357665958,1744296670746,-500.0,0.00038904,4]
[357665959,1744296670756,-500.0,0.00038904,4]
[357665960,1744296670766,-529.35,0.00038904,4]
[357665961,1744296670775,-577.43,0.00038904,4]
[357665962,1744296670785,-1665.8,0.00038904,4]
[357665963,1744296670794,-500.0,0.00038904,4]
[357665964,1744296670804,-500.0,0.00038904,4]
[357665965,1744296670814,-500.0,0.00038904,4]
[357665966,1744296670823,-500.0,0.00038904,4]
[357665967,1744296670833,-1010.4,0.00038904,4]
[357665968,1744296670842,-500.0,0.00038904,4]
[357665969,1744296670852,-500.0,0.00038904,4]
[357665970,1744296670862,-500.0,0.00038904,4]
[357665971,1744296670872,-1937.3,0.00038904,4]
[357665972,1744296670881,-1991.54,0.00038904,4]
[357665973,1744296670890,-500.0,0.00038904,4]
[357665974,1744296670900,-500.0,0.00038904,4]
[357665975,1744296670909,-500.0,0.00038904,4]
[357665976,1744296670920,-500.0,0.00038904,4]
[357665977,1744296670930,-500.0,0.00038904,4]
[357665978,1744296670940,-500.0,0.00038904,4]
[357665979,1744296670950,-500.0,0.00038904,4]
[357665980,1744296670959,-500.0,0.00038904,4]
[357665981,1744296670969,-500.0,0.00038904,4]
[357665982,1744296670979,-1286.9,0.00038904,4]
[357665983,1744296670989,-500.0,0.00038904,4]
[357665984,1744296670999,-689.05,0.00038904,4]
[357665985,1744296671009,-500.0,0.00038904,4]
[357665986,1744296671019,-1310.68,0.00038904,4]
[357665987,1744296671028,-614.64101228,0.00038904,4]
[357665988,1744296671038,-500.0,0.00038904,4]
[357665989,1744296671048,-500.0,0.00038904,4]
[357665990,1744296671057,-1512.1,0.00038904,4]
[357665991,1744296671078,-500.0,0.00038904,4]
[357665992,1744296671094,-500.0,0.00038904,4]
[357665993,1744296671114,-500.0,0.00038904,4]
[357665994,1744296671136,-500.0,0.00038904,4]
[357665995,1744296671151,-1455.24,0.00038904,4]
[357665996,1744296671170,-539.76967029,0.00038904,4]
[357665997,1744296671189,-500.0,0.00038904,4]
[357665998,1744296671210,-911.61,0.00038904,4]
[357665999,1744296671228,-1093.62,0.00038904,4]
[357666000,1744296671245,-505.61,0.00038904,4]
[357666001,1744296671263,-905.24,0.00038904,4]
[357666002,1744296671278,-500.0,0.00038904,4]
[357666003,1744296671296,-500.0,0.00038904,4]